bitfinex-derivatives/quotes_SOLF0:USTF0_20241120
["timestamp","ask_amount","ask_price","bid_price","bid_amount"]
[1732115663761,19.67663092,236.76,236.57,0.77541712]
[1732115664159,19.67663092,236.76,236.52,4.22]
[1732115664160,3.9438,236.79,236.6,19.67663092]
[1732115664456,19.67663092,236.84,236.64,19.67663092]
[1732115664652,0.5769,236.87,236.68,19.67663092]
[1732115665053,2.6856,236.87,236.68,21.73655692]
[1732115665456,0.5769,236.87,236.68,21.73655692]
[1732115666053,19.67663092,236.88,236.68,21.73655692]
[1732115666962,19.67663092,236.84,236.68,2.059926]
[1732115667160,19.67663092,236.84,236.69,4.22]
[1732115667360,21.78603092,236.8,236.67,2.07595606]
[1732115667663,19.67663092,236.8,236.65,2.1441]
[1732115667865,19.67663092,236.76,236.66,4.22]
[1732115669662,19.67663092,236.8,236.66,4.22]
[1732115670963,2.1091,236.83,236.66,4.22]
[1732115671159,19.67663092,236.84,236.66,4.22]
[1732115671764,19.67663092,236.8,236.67,4.22]
[1732115672566,19.67663092,236.84,236.67,4.22]
[1732115673863,21.78573092,236.84,236.67,4.22]
[1732115674173,19.67663092,236.84,236.67,4.22]
[1732115674369,19.67663092,236.88,236.68,19.67663092]
[1732115674866,3.8778,236.91,236.72,19.67663092]
[1732115675066,19.67663092,236.88,236.73,4.3087]
[1732115675370,19.67663092,236.88,236.73,6.41598863]
[1732115676371,3.8778,236.91,236.73,2.2251]
[1732115676372,19.67663092,236.84,236.73,2.2251]
[1732115676769,2.1091,236.83,236.73,2.2251]
[1732115676971,19.67663092,236.88,236.7,4.22]
[1732115676972,19.67663092,236.8,236.7,4.22]
[1732115678470,21.78603092,236.8,236.7,4.22]
[1732115678673,19.67663092,236.8,236.7,4.22]
[1732115679868,21.78603092,236.8,236.7,4.22]
[1732115680970,19.67663092,236.8,236.66,4.2545]
[1732115681170,2.1097,236.76,236.65,4.2]
[1732115681376,3.9628,236.79,236.65,4.2]
[1732115681770,3.9628,236.79,236.57,19.67663092]
[1732115681771,19.67663092,236.72,236.58,4.2]
[1732115682271,2.1105,236.68,236.53,6.5506]
[1732115682578,19.67663092,236.72,236.54,4.2]
[1732115682778,2.1103,236.7,236.54,4.2]
[1732115683074,19.67663092,236.72,236.54,4.2]
[1732115683270,2.1102,236.71,236.54,4.2]
[1732115683473,19.67663092,236.72,236.53,6.5506]
[1732115683978,19.67663092,236.68,236.54,4.2]
[1732115684373,2.1108,236.64,236.53,8.6892]
[1732115684576,2.0898,236.67,236.49,2.07205622]
[1732115684782,3.9165,236.67,236.5,4.2]
[1732115685677,2.1109,236.63,236.5,4.2]
[1732115685873,3.9165,236.67,236.5,4.2]
[1732115686077,19.67663092,236.64,236.5,4.2]
[1732115686281,3.9165,236.67,236.5,4.2]
[1732115686880,19.67663092,236.64,236.5,4.2]
[1732115687273,21.78743092,236.64,236.5,4.2]
[1732115687782,19.67663092,236.64,236.5,4.2]
[1732115688279,2.1109,236.63,236.5,4.2]
[1732115688882,19.67663092,236.64,236.5,4.2]
[1732115689782,19.67663092,236.68,236.5,4.2]
[1732115690874,19.67663092,236.72,236.51,19.67663092]
[1732115691375,19.67663092,236.72,236.52,2.0874]
[1732115691785,19.67663092,236.72,236.55,19.67663092]
[1732115692477,6.1065,236.75,236.55,19.67663092]
[1732115692876,19.67663092,236.76,236.55,19.67663092]
[1732115693583,19.67663092,236.76,236.59,19.67663092]
[1732115693787,3.9827,236.82,236.6,6.4657]
[1732115693788,19.67663092,236.8,236.6,6.4657]
[1732115694981,19.67663092,236.84,236.63,19.67663092]
[1732115695188,2.1091,236.83,236.64,2.136]
[1732115695385,19.67663092,236.84,236.64,2.136]
[1732115695689,19.67663092,236.84,236.65,2.1243]
[1732115696084,1.828,236.87,236.65,2.1243]
[1732115696085,19.67663092,236.8,236.65,2.1243]
[1732115697584,21.78563092,236.84,236.65,2.1243]
[1732115697983,1.828,236.87,236.65,2.1243]
[1732115697984,26.78095293,236.88,236.65,2.1243]
[1732115698182,19.67663092,236.91,236.71,19.67663092]
[1732115698383,19.67663092,236.91,236.72,6.3205]
[1732115698589,19.67663092,236.87,236.72,6.3205]
[1732115698783,2.109,236.84,236.72,2.1205]
[1732115698984,19.67663092,236.87,236.73,4.2]
[1732115699393,2.1091,236.83,236.73,4.2]
[1732115699595,19.67663092,236.87,236.73,4.2]
[1732115700992,19.67663092,236.87,236.65,21.80093092]
[1732115700993,21.78573092,236.83,236.65,21.80093092]
[1732115701193,2.1913,236.94,236.66,4.0]
[1732115701194,19.67663092,236.79,236.66,4.0]
[1732115701892,19.67663092,236.79,236.61,19.67663092]
[1732115701893,19.67663092,236.75,236.61,4.0]
[1732115702094,19.72633261,236.74,236.54,19.72633261]
[1732115702290,1.8266,236.73,236.55,0.7755568]
[1732115702598,21.86353261,236.78,236.58,19.72633261]
[1732115702895,2.1372,236.78,236.62,19.72633261]
[1732115703097,21.86353261,236.78,236.63,4.0]
[1732115703499,2.1372,236.78,236.63,4.0]
[1732115703698,1.8223,236.85,236.64,19.72633261]
[1732115703900,4.0335,236.85,236.64,24.05654357]
[1732115704204,4.0335,236.85,236.68,19.72633261]
[1732115704399,19.72633261,236.88,236.68,19.72633261]
[1732115704604,23.75983261,236.92,236.72,19.72633261]
[1732115704896,23.75983261,236.92,236.73,4.0]
[1732115705301,19.72633261,236.88,236.73,4.0]
[1732115706105,19.72633261,236.84,236.65,4.3686]
[1732115706296,19.72633261,236.8,236.66,4.0]
[1732115707007,2.0634,236.79,236.66,4.0]
[1732115707706,19.72633261,236.76,236.59,30.38]
[1732115708014,19.72633261,236.76,236.6,4.0]
[1732115708606,19.72633261,236.76,236.6,6.11468077]
[1732115709005,19.72633261,236.72,236.56,4.0]
[1732115709405,2.1103,236.7,236.56,4.0]
[1732115709706,19.72633261,236.72,236.57,2.09014979]
[1732115710103,19.72633261,236.77,236.56,23.72633261]
[1732115710307,19.72633261,236.73,236.56,25.79495405]
[1732115710508,19.72633261,236.73,236.56,6.06862144]
[1732115710903,19.72633261,236.77,236.56,25.79495405]
[1732115711302,19.72633261,236.77,236.57,0.77550008]
[1732115711908,19.72633261,236.77,236.56,25.79495405]
[1732115712106,1.8223,236.78,236.6,19.72633261]
[1732115712607,2.0634,236.79,236.64,19.72633261]
[1732115712813,4.0586,236.87,236.65,10.657]
[1732115713203,4.0586,236.87,236.68,19.72633261]
[1732115713402,19.72633261,236.84,236.65,10.657]
[1732115714010,21.83533261,236.84,236.65,10.657]
[1732115714511,19.72633261,236.8,236.65,10.657]
[1732115715306,19.72633261,236.8,236.59,19.72633261]
[1732115715608,19.72633261,236.8,236.62,4.0]
[1732115715820,2.1098,236.75,236.62,4.0]
[1732115716406,2.1098,236.75,236.63,2.06378976]
[1732115716611,19.72633261,236.8,236.63,2.06378976]
[1732115716612,2.1097,236.77,236.63,2.06378976]
[1732115716810,19.72633261,236.8,236.63,2.06378976]
[1732115717712,2.1098,236.75,236.63,2.06378976]
[1732115718309,2.11,236.73,236.62,4.0]
[1732115718514,19.72633261,236.76,236.62,4.0]
[1732115718814,2.1231,236.75,236.62,4.0]
[1732115719014,2.11,236.73,236.62,4.0]
[1732115719419,4.233,236.75,236.61,2.10366873]
[1732115719614,4.233,236.75,236.62,4.0]
[1732115719913,4.2329,236.75,236.62,4.0]
[1732115720317,19.72633261,236.83,236.62,4.0]
[1732115720510,2.1095,236.8,236.62,4.0]
[1732115720713,19.72633261,236.83,236.64,19.72633261]
[1732115721011,2.1091,236.83,236.62,4.0]
[1732115721212,19.72633261,236.82,236.65,19.72633261]
[1732115721624,2.1096,236.78,236.62,4.0]
[1732115721918,2.1096,236.78,236.63,4.0]
[1732115721919,19.72633261,236.78,236.63,4.0]
[1732115722420,2.1099,236.74,236.63,4.0]
[1732115722713,19.72633261,236.78,236.63,4.0]
[1732115723218,19.72633261,236.74,236.62,4.0]
[1732115723619,19.7232299,236.75,236.62,4.0]
[1732115724508,6.1231,236.84,236.62,4.0]
[1732115724509,2.1096,236.78,236.62,4.0]
[1732115724712,19.7232299,236.83,236.63,19.7232299]
[1732115725113,2.1097,236.77,236.63,19.7232299]
[1732115725315,19.7232299,236.79,236.62,4.0]
[1732115725712,19.7232299,236.79,236.57,6.3566]
[1732115725918,19.7232299,236.75,236.58,4.0]
[1732115726518,2.11,236.73,236.58,4.0]
[1732115726721,19.7232299,236.75,236.58,4.0]
[1732115726917,1.8272,236.74,236.58,4.0]
[1732115727517,2.1098,236.75,236.59,19.7232299]
[1732115727823,19.7232299,236.79,236.59,19.7232299]
[1732115728114,21.5504299,236.83,236.63,19.7232299]
[1732115729414,2.1095,236.8,236.63,19.7232299]
[1732115729820,19.7232299,236.79,236.59,19.7232299]
[1732115730020,19.7232299,236.75,236.6,4.0]
[1732115730421,2.1101,236.72,236.6,4.0]
[1732115730621,19.7232299,236.75,236.6,4.0]
[1732115731024,19.7232299,236.79,236.6,4.0]
[1732115731325,19.7232299,236.79,236.63,19.7232299]
[1732115731722,21.5504299,236.83,236.63,19.7232299]
[1732115732224,2.1095,236.79,236.63,19.7232299]
[1732115732825,2.1093,236.81,236.63,19.7232299]
[1732115733027,21.5504299,236.83,236.63,19.7232299]
[1732115733523,23.6595299,236.83,236.63,19.7232299]
[1732115734126,21.8323299,236.83,236.63,19.7232299]
[1732115734520,19.7232299,236.87,236.67,19.7232299]
[1732115734725,19.7232299,236.87,236.68,3.92]
[1732115734924,2.1089,236.86,236.68,3.92]
[1732115735128,19.7232299,236.91,236.71,19.7232299]
[1732115735422,19.7232299,236.91,236.71,21.82283456]
[1732115735626,2.1088,236.86,236.71,21.82283456]
[1732115737421,19.7232299,236.91,236.71,21.82283456]
[1732115738328,19.7232299,236.87,236.71,2.09960466]
[1732115738526,19.7232299,236.83,236.72,3.92]
[1732115738722,12.31799478,236.82,236.72,3.92]
[1732115739930,14.42749478,236.79,236.72,3.92]
[1732115740131,12.31799478,236.76,236.68,3.92]
[1732115740330,12.31799478,236.88,236.68,3.92]
[1732115740331,12.31799478,236.73,236.68,3.92]
[1732115740830,12.31799478,236.73,236.62,3.92]
[1732115741138,12.31799478,236.7,236.62,3.92]
[1732115741426,19.72924076,236.72,236.61,2.1045]
[1732115741827,2.1103,236.7,236.61,2.1045]
[1732115742023,19.72924076,236.72,236.61,2.1045]
[1732115742723,2.1103,236.69,236.6,3.92]
[1732115742922,19.72924076,236.72,236.55,2.0661]
[1732115743128,19.72924076,236.68,236.56,6.07186874]
[1732115743325,19.72924076,236.68,236.56,3.92]
[1732115743628,2.1107,236.66,236.56,3.92]
[1732115744027,19.72924076,236.68,236.56,3.92]
[1732115745128,2.1105,236.67,236.56,3.92]
[1732115745632,2.1104,236.69,236.56,3.92]
[1732115745934,19.72924076,236.76,236.56,23.64924076]
[1732115746929,24.51094076,236.8,236.6,19.72924076]
[1732115747333,2.1096,236.78,236.6,19.72924076]
[1732115747534,24.51094076,236.8,236.6,19.72924076]
[1732115747734,19.72924076,236.8,236.6,19.72924076]
[1732115748031,19.72924076,236.8,236.61,0.77535974]
[1732115748337,19.72924076,236.8,236.6,19.72924076]
[1732115748635,19.72924076,236.8,236.61,0.77536021]
[1732115748839,19.72924076,236.8,236.6,19.72924076]
[1732115749430,19.72924076,236.84,236.64,19.72924076]
[1732115749640,2.1093,236.81,236.65,6.1553]
[1732115750035,2.1093,236.81,236.66,2.1971]
[1732115750229,19.72924076,236.88,236.68,19.72924076]
[1732115750834,2.1088,236.87,236.68,19.72924076]
[1732115751043,19.72924076,236.88,236.68,19.72924076]
[1732115751434,21.83784076,236.88,236.68,19.72924076]
[1732115752132,19.72924076,236.88,236.68,19.72924076]
[1732115752333,19.72924076,236.84,236.69,3.92]
[1732115753437,19.72924076,236.8,236.69,3.92]
[1732115753742,2.1096,236.78,236.69,3.92]
[1732115754035,19.72924076,236.8,236.69,3.92]
[1732115754238,2.1095,236.79,236.69,3.92]
[1732115754631,19.72924076,236.84,236.69,3.92]
[1732115755637,21.83824076,236.84,236.69,3.92]
[1732115755835,19.72924076,236.88,236.69,3.92]
[1732115756135,2.0833,236.92,236.69,3.92]
[1732115756136,2.1086,236.89,236.72,19.72924076]
[1732115756434,21.81254076,236.92,236.72,19.72924076]
[1732115756639,2.1081,236.95,236.76,19.72924076]
[1732115756837,2.1081,236.95,236.77,6.186]
[1732115757038,19.72924076,236.96,236.77,6.186]
[1732115757240,21.83714076,236.96,236.78,2.3898]
[1732115757737,19.72924076,236.96,236.79,2.2521]
[1732115757938,19.72924076,236.96,236.79,4.31816762]
[1732115758136,19.72924076,236.92,236.79,4.31816762]
[1732115758339,2.1086,236.89,236.79,2.2521]
[1732115758534,19.72924076,236.92,236.79,2.2521]
[1732115759137,21.83764076,236.92,236.79,2.2521]
[1732115759636,2.1084,236.91,236.79,2.2521]
[1732115760234,2.1085,236.9,236.79,2.2521]
[1732115760537,19.72924076,236.92,236.72,19.72924076]
[1732115760748,2.1086,236.87,236.73,6.1704]
[1732115760939,19.72924076,236.88,236.72,3.8]
[1732115761343,2.1089,236.84,236.7,4.474]
[1732115761544,2.1089,236.84,236.71,3.8]
[1732115761545,19.72924076,236.84,236.71,3.8]
[1732115761944,2.1091,236.82,236.71,3.8]
[1732115762145,19.72924076,236.84,236.71,3.8]
[1732115763053,19.72924076,236.88,236.71,3.8]
[1732115763844,19.72924076,236.84,236.71,3.8]
[1732115764446,19.72924076,236.8,236.67,2.3704]
[1732115764741,19.72924076,236.76,236.65,3.8]
[1732115764946,2.1097,236.75,236.65,3.8]
[1732115765245,19.72924076,236.72,236.62,3.8]
[1732115765446,19.72924076,236.68,236.59,34.18]
[1732115765643,19.72924076,236.68,236.59,3.8]
[1732115765944,19.72924076,236.68,236.52,4.5342]
[1732115766145,2.3795,236.67,236.53,3.8]
[1732115766644,2.1106,236.64,236.53,3.8]
[1732115766840,2.3795,236.67,236.53,3.8]
[1732115767447,4.4899,236.67,236.53,3.8]
[1732115767645,2.3795,236.67,236.53,3.8]
[1732115768749,19.72924076,236.6,236.41,64.46235027]
[1732115768944,19.72924076,236.64,236.42,0.77583666]
[1732115768945,19.72924076,236.56,236.42,0.77583666]
[1732115769145,2.1116,236.53,236.42,0.77583666]
[1732115769452,19.72924076,236.56,236.41,3.8]
[1732115770049,21.84064076,236.56,236.41,3.8]
[1732115770253,19.72924076,236.51,236.32,17.58064098]
[1732115770447,19.72924076,236.45,236.33,0.77613749]
[1732115770652,19.72924076,236.45,236.33,3.8]
[1732115770852,19.72924076,236.45,236.34,0.77616359]
[1732115771155,19.72924076,236.41,236.3,2.448]
[1732115771348,19.72924076,236.37,236.29,46.88170929]
[1732115771750,19.72924076,236.33,236.29,46.88170929]
[1732115772652,19.72924076,236.33,236.29,45.66080929]
[1732115772959,19.72924076,236.33,236.24,17.58064098]
[1732115774655,19.72924076,236.37,236.24,17.58064098]
[1732115775856,19.72924076,236.37,236.18,3.8]
[1732115776062,19.72924076,236.33,236.19,0.77656017]
[1732115776256,19.72924076,236.33,236.2,4.57656017]
[1732115776453,19.72924076,236.33,236.21,0.77656017]
[1732115776857,19.72924076,236.33,236.22,0.77655653]
[1732115777059,19.72924076,236.33,236.22,3.8]
[1732115777363,19.72924076,236.37,236.22,3.8]
[1732115777665,19.72924076,236.37,236.23,0.77654466]
[1732115779169,19.72924076,236.41,236.23,0.77654466]
[1732115779668,19.72924076,236.41,236.24,19.72924076]
[1732115779869,19.72924076,236.41,236.25,0.77654466]
[1732115780463,19.72924076,236.45,236.25,0.77654466]
[1732115780868,2.1116,236.54,236.28,19.72924076]
[1732115781165,4.6652,236.63,236.32,19.72924076]
[1732115781467,4.6652,236.63,236.33,3.8]
[1732115781468,19.72924076,236.53,236.33,3.8]
[1732115781865,19.72924076,236.53,236.34,0.77654466]
[1732115782760,19.72924076,236.49,236.34,0.77654466]
[1732115782963,19.72924076,236.45,236.35,3.8]
[1732115783162,19.72924076,236.45,236.29,6.8236]
[1732115783361,19.72924076,236.45,236.3,4.57624744]
[1732115783668,19.72924076,236.41,236.3,3.8]
[1732115783964,19.72924076,236.45,236.31,0.7762951]
[1732115784873,19.72924076,236.45,236.3,3.8]
[1732115785059,19.72924076,236.52,236.32,19.72924076]
[1732115785259,19.72924076,236.52,236.33,0.77629631]
[1732115785458,19.72924076,236.56,236.36,19.72924076]
[1732115785863,4.6652,236.63,236.44,19.72924076]
[1732115786061,19.72924076,236.6,236.45,6.17]
[1732115786262,19.72924076,236.6,236.46,3.8]
[1732115788573,2.1113,236.57,236.45,2.37]
[1732115788875,19.72924076,236.52,236.37,3.8]
[1732115789876,19.72924076,236.56,236.37,3.8]
[1732115791570,19.72924076,236.56,236.38,3.78]
[1732115792271,0.91194,236.57,236.4,19.72924076]
[1732115792473,0.91194,236.57,236.41,4.51044454]
[1732115793069,0.91194,236.57,236.42,2.3151]
[1732115793675,0.91194,236.57,236.44,19.72924076]
[1732115793877,0.91194,236.57,236.45,2.1497]
[1732115794076,0.91194,236.57,236.46,3.78]
[1732115794475,0.91194,236.57,236.48,19.72924076]
[1732115794880,0.91194,236.57,236.52,19.72924076]
[1732115796078,0.91194,236.57,236.53,3.78]
[1732115796375,0.91194,236.57,236.54,3.78]
[1732115798173,2.2527,236.71,236.54,3.78]
[1732115798381,2.2527,236.71,236.55,2.1708]
[1732115799385,2.2671,236.74,236.56,19.72924076]
[1732115799580,19.72924076,236.8,236.6,19.72924076]
[1732115799773,19.72924076,236.8,236.61,2.2621]
[1732115799974,19.72924076,236.76,236.61,2.2621]
[1732115800177,19.72924076,236.72,236.61,2.2621]
[1732115800483,2.1098,236.73,236.61,2.2621]
[1732115800787,2.335,236.75,236.61,2.2621]
[1732115800981,2.1098,236.74,236.61,2.2621]
[1732115801283,2.335,236.75,236.61,2.2621]
[1732115801486,19.72924076,236.72,236.59,3.78]
[1732115801782,19.72924076,236.68,236.59,3.78]
[1732115802285,2.2243,236.67,236.59,3.78]
[1732115804588,19.72924076,236.72,236.59,3.78]
[1732115805886,2.1102,236.69,236.59,3.78]
[1732115806277,2.1101,236.71,236.59,3.78]
[1732115806483,19.72924076,236.72,236.59,3.78]
[1732115806882,19.72924076,236.68,236.59,3.78]
[1732115807285,2.1104,236.67,236.59,3.78]
[1732115807786,19.72924076,236.68,236.54,2.1937]
[1732115807989,21.83994076,236.64,236.52,3.78]
[1732115808185,19.72924076,236.64,236.52,3.78]
[1732115808385,19.72924076,236.68,236.52,3.78]
[1732115808587,21.83964076,236.68,236.52,3.78]
[1732115808893,19.72924076,236.68,236.52,3.78]
[1732115809187,2.1106,236.65,236.52,3.78]
[1732115809591,19.72924076,236.64,236.43,19.72924076]
[1732115809788,2.1109,236.61,236.49,3.78]
[1732115810082,2.1109,236.61,236.43,19.72924076]
[1732115810285,2.1109,236.61,236.44,4.55583996]
[1732115810485,2.1109,236.61,236.45,0.77583996]
[1732115810680,2.1109,236.61,236.44,3.78]
[1732115810884,4.464,236.63,236.44,3.78]
[1732115811077,4.464,236.63,236.45,0.7758776]
[1732115811078,6.5748,236.63,236.45,0.7758776]
[1732115811281,4.464,236.63,236.46,0.77584625]
[1732115811479,2.1108,236.62,236.44,3.78]
[1732115811679,2.3039,236.63,236.45,0.77585356]
[1732115812187,2.1109,236.61,236.45,0.77585356]
[1732115812388,2.3039,236.63,236.45,0.77585356]
[1732115812591,2.3039,236.63,236.46,3.78]
[1732115812890,19.72924076,236.56,236.44,3.78]
[1732115813090,19.72924076,236.6,236.44,3.78]
[1732115813282,2.1113,236.57,236.44,3.78]
[1732115813585,19.72924076,236.6,236.44,3.78]
[1732115813981,2.1114,236.56,236.44,3.78]
[1732115814188,19.72924076,236.6,236.44,3.78]
[1732115814887,2.3039,236.63,236.45,2.2452]
[1732115815082,2.3039,236.63,236.48,19.72924076]
[1732115815285,19.72924076,236.68,236.48,19.72924076]
[1732115815683,2.1104,236.67,236.48,19.72924076]
[1732115815891,19.72924076,236.68,236.48,19.72924076]
[1732115816095,2.2678,236.69,236.52,19.72924076]
[1732115816390,2.1601,236.73,236.53,3.78]
[1732115816391,2.1101,236.7,236.53,3.78]
[1732115816594,2.1601,236.73,236.54,2.06384995]
[1732115816784,2.1601,236.73,236.56,19.72924076]
[1732115816983,2.2678,236.75,236.6,19.72924076]
[1732115817182,2.2678,236.75,236.61,3.78]
[1732115817487,2.1095,236.77,236.61,3.78]
[1732115817887,19.72924076,236.8,236.61,3.78]
[1732115818192,19.72924076,236.84,236.64,19.72924076]
[1732115818691,2.1094,236.78,236.64,19.72924076]
[1732115818892,19.72924076,236.84,236.64,19.72924076]
[1732115819390,19.72924076,236.8,236.61,3.78]
[1732115819585,19.72924076,236.84,236.61,3.78]
[1732115819785,19.72924076,236.84,236.64,19.72924076]
[1732115820687,19.72924076,236.8,236.65,3.8]
[1732115821084,2.1097,236.75,236.65,3.8]
[1732115821794,19.72924076,236.8,236.65,3.8]
[1732115822088,19.72924076,236.72,236.61,3.8]
[1732115822594,19.72924076,236.76,236.61,3.8]
[1732115822791,19.72924076,236.8,236.61,3.8]
[1732115822987,2.1098,236.74,236.61,3.8]
[1732115823197,19.72924076,236.8,236.61,3.8]
[1732115823388,2.1096,236.76,236.61,3.8]
[1732115823790,19.72924076,236.8,236.61,3.8]
[1732115824389,19.72924076,236.84,236.64,19.72924076]
[1732115825085,2.1091,236.82,236.64,19.72924076]
[1732115825286,2.2678,236.85,236.68,19.72924076]
[1732115825589,2.2901,236.87,236.69,5.9484]
[1732115825785,2.1087,236.86,236.7,2.2527]
[1732115826495,19.72924076,236.92,236.72,19.72924076]
[1732115826688,2.1087,236.87,236.7,2.2527]
[1732115826885,19.72924076,236.88,236.7,2.2527]
[1732115827285,2.1089,236.84,236.7,2.2527]
[1732115828095,21.83784076,236.88,236.7,2.2527]
[1732115828292,19.72924076,236.88,236.7,2.2527]
[1732115828695,2.1087,236.86,236.7,2.2527]
[1732115829191,19.72924076,236.92,236.72,19.72924076]
[1732115829594,19.72924076,236.84,236.73,3.8]
[1732115829804,2.1091,236.82,236.69,2.1484]
[1732115830095,19.72924076,236.84,236.69,2.1484]
[1732115830394,19.72924076,236.88,236.69,2.1484]
[1732115830988,2.1092,236.8,236.69,2.1484]
[1732115831186,19.72924076,236.84,236.7,3.8]
[1732115832698,2.1093,236.79,236.7,3.8]
[1732115832998,19.72924076,236.84,236.7,3.8]
[1732115833298,2.109,236.83,236.7,3.8]
[1732115833495,19.72924076,236.84,236.7,3.8]
[1732115833893,2.109,236.83,236.7,3.8]
[1732115834090,19.72924076,236.84,236.7,3.8]
[1732115834698,19.72924076,236.92,236.72,19.72924076]
[1732115835288,2.1084,236.9,236.72,19.72924076]
[1732115835490,19.72924076,236.92,236.72,19.72924076]
[1732115835691,2.1632,236.93,236.76,19.72924076]
[1732115835892,2.1632,236.93,236.77,4.524]
[1732115836092,2.1632,236.93,236.78,3.8]
[1732115836291,2.1083,236.91,236.77,2.2424]
[1732115836496,19.72924076,236.92,236.78,3.8]
[1732115837098,2.1632,236.93,236.78,3.8]
[1732115837099,19.72924076,236.88,236.78,3.8]
[1732115837400,19.72924076,236.92,236.78,3.8]
[1732115838099,2.1085,236.88,236.78,3.8]
[1732115838398,19.72924076,236.92,236.78,3.8]
[1732115840097,2.1092,236.94,236.61,46.19548985]
[1732115840098,19.72924076,236.82,236.61,46.19548985]
[1732115840304,19.72924076,236.73,236.62,5.9936]
[1732115841304,19.72924076,236.73,236.6,0.5481]
[1732115841608,19.72924076,236.69,236.6,0.5481]
[1732115842110,19.72924076,236.76,236.6,0.5481]
[1732115842707,2.1102,236.69,236.6,0.5481]
[1732115842908,19.72924076,236.76,236.6,0.5481]
[1732115843110,2.2882,236.8,236.6,0.5481]
[1732115843111,19.72924076,236.71,236.6,0.5481]
[1732115843703,19.72924076,236.67,236.6,0.5481]
[1732115843906,2.1108,236.62,236.52,2.1936]
[1732115844107,19.72924076,236.67,236.51,3.8]
[1732115844608,2.1107,236.63,236.51,3.8]
[1732115844815,19.72924076,236.63,236.51,3.8]
[1732115845010,2.1115,236.54,236.37,17.58064098]
[1732115845206,2.1115,236.54,236.4,3.8]
[1732115845903,19.72924076,236.59,236.4,3.8]
[1732115847105,2.1116,236.53,236.4,3.8]
[1732115847304,19.72924076,236.59,236.4,3.8]
[1732115848301,2.1115,236.54,236.4,3.8]
[1732115849504,19.72924076,236.55,236.38,2.2587]
[1732115849701,19.72924076,236.51,236.32,19.72924076]
[1732115849910,19.72924076,236.51,236.33,3.7]
[1732115850105,19.72924076,236.47,236.29,4.4493]
[1732115850410,4.6205,236.46,236.3,3.7]
[1732115850606,4.6205,236.46,236.32,19.72924076]
[1732115850918,19.72924076,236.55,236.37,19.72924076]
[1732115851106,4.6205,236.54,236.38,3.7]
[1732115852314,2.1118,236.5,236.38,3.7]
[1732115852913,2.1115,236.52,236.38,3.7]
[1732115853612,21.79564921,236.63,236.41,19.72924076]
[1732115853911,21.79564921,236.63,236.39,2.10380281]
[1732115853912,4.4252,236.62,236.45,19.72924076]
[1732115854115,4.4252,236.62,236.46,5.9353]
[1732115854707,2.1108,236.6,236.46,5.9353]
[1732115854909,4.4252,236.62,236.46,5.9353]
[1732115855114,19.72924076,236.59,236.45,3.7]
[1732115855314,19.72924076,236.55,236.45,3.7]
[1732115855714,19.72924076,236.51,236.45,3.7]
[1732115855909,21.84084076,236.51,236.39,3.7]
[1732115857315,2.1117,236.5,236.39,3.7]
[1732115857509,19.72924076,236.51,236.39,3.7]
[1732115857917,19.72924076,236.51,236.33,2.1102]
[1732115858113,19.72924076,236.47,236.34,3.72]
[1732115858411,19.72924076,236.47,236.29,2.2961]
[1732115858614,32.13407948,236.45,236.32,3.72]
[1732115859012,2.1123,236.43,236.32,3.72]
[1732115859820,32.13407948,236.45,236.32,3.72]
[1732115860215,32.13407948,236.45,236.29,2.2961]
[1732115860416,32.13407948,236.45,236.33,3.72]
[1732115861914,34.24617948,236.45,236.33,3.72]
[1732115862610,2.1122,236.44,236.33,3.72]
[1732115862811,32.13407948,236.45,236.33,3.72]
[1732115863015,32.13407948,236.41,236.29,2.2961]
[1732115863316,32.13407948,236.37,236.27,3.72]
[1732115863826,34.24687948,236.37,236.27,3.72]
[1732115864115,2.3109,236.49,236.27,3.72]
[1732115864116,32.13407948,236.41,236.27,3.72]
[1732115864515,32.13407948,236.45,236.27,3.72]